[Event "*** Titled Tuesday Blitz"]
[Site "Chess.com"]
[Date "2021.02.09"]
[Round "3"]
[White "Arseniy_Nesterov"]
[Black "Meri-Arabidze"]
[Result "1/2-1/2"]
[WhiteElo "2819"]
[BlackElo "2608"]
[TimeControl "180+1"]
[EndTime "10:30:36 PST"]
[Termination "Game drawn - insufficient material"]

1. d4 {[%clk 0:03:00.9]} 1... d5 {[%clk 0:02:59.3]} 2. c4 {[%clk 0:03:00.5]}
2... e6 {[%clk 0:02:59.7]} 3. Nf3 {[%clk 0:03:00.3]} 3... Nf6 {[%clk 0:03:00.2]}
4. Nc3 {[%clk 0:03:00]} 4... Nbd7 {[%clk 0:03:00.8]} 5. Bg5 {[%clk 0:02:57.9]}
5... Be7 {[%clk 0:03:00.9]} 6. e3 {[%clk 0:02:57.6]} 6... h6 {[%clk 0:03:01.2]}
7. Bh4 {[%clk 0:02:57.1]} 7... O-O {[%clk 0:03:01.4]} 8. Rc1 {[%clk 0:02:56.7]}
8... c5 {[%clk 0:03:01.5]} 9. cxd5 {[%clk 0:02:52.4]} 9... Nxd5 {[%clk
0:03:02.4]} 10. Bxe7 {[%clk 0:02:51.6]} 10... Nxe7 {[%clk 0:03:03.3]} 11. Be2
{[%clk 0:02:42.2]} 11... b6 {[%clk 0:03:02.9]} 12. O-O {[%clk 0:02:34.4]} 12...
Bb7 {[%clk 0:03:03]} 13. dxc5 {[%clk 0:02:33.3]} 13... Nxc5 {[%clk 0:03:02.2]}
14. b4 {[%clk 0:02:30.9]} 14... Ne4 {[%clk 0:02:54.1]} 15. Nxe4 {[%clk
0:02:26.3]} 15... Bxe4 {[%clk 0:02:55]} 16. Ne5 {[%clk 0:01:46.1]} 16... Bd5
{[%clk 0:02:40.7]} 17. Bf3 {[%clk 0:01:39.3]} 17... Bxf3 {[%clk 0:02:38.2]} 18.
Qxf3 {[%clk 0:01:37.2]} 18... Qd5 {[%clk 0:02:34.1]} 19. Qxd5 {[%clk 0:01:35.7]}
19... Nxd5 {[%clk 0:02:33.5]} 20. Nc6 {[%clk 0:01:35.3]} 20... a5 {[%clk
0:02:20.4]} 21. b5 {[%clk 0:01:28.9]} 21... Nb4 {[%clk 0:02:20.4]} 22. a3 {[%clk
0:01:20.4]} 22... Nxc6 {[%clk 0:02:05.2]} 23. Rxc6 {[%clk 0:01:17.4]} 23... Rab8
{[%clk 0:02:04.1]} 24. g4 {[%clk 0:01:09.4]} 24... Rfd8 {[%clk 0:01:58.9]} 25.
Rfc1 {[%clk 0:01:08.3]} 25... Rd3 {[%clk 0:01:56]} 26. a4 {[%clk 0:01:08.1]}
26... Ra3 {[%clk 0:01:46.9]} 27. R1c4 {[%clk 0:01:07.6]} 27... Kh7 {[%clk
0:01:47.2]} 28. Rf4 {[%clk 0:01:02.6]} 28... Rb7 {[%clk 0:01:43.8]} 29. h4
{[%clk 0:01:00.4]} 29... h5 {[%clk 0:01:41.3]} 30. g5 {[%clk 0:00:35.7]} 30...
Kg6 {[%clk 0:01:39.3]} 31. Kg2 {[%clk 0:00:33.3]} 31... Ra2 {[%clk 0:01:35.5]}
32. Kg3 {[%clk 0:00:32.3]} 32... Rb2 {[%clk 0:01:23.7]} 33. Rd4 {[%clk
0:00:30.6]} 33... Rb4 {[%clk 0:01:22.3]} 34. Rcc4 {[%clk 0:00:18.6]} 34... Rb1
{[%clk 0:01:09.9]} 35. Rd6 {[%clk 0:00:13.3]} 35... Rb4 {[%clk 0:01:09.4]} 36.
Rdc6 {[%clk 0:00:12.1]} 36... Rd7 {[%clk 0:00:54.2]} 37. Rf4 {[%clk 0:00:07.2]}
37... Rb7 {[%clk 0:00:49.6]} 38. Rcc4 {[%clk 0:00:05.1]} 38... Rb1 {[%clk
0:00:47.5]} 39. Rfd4 {[%clk 0:00:05.6]} 39... Rb2 {[%clk 0:00:42.1]} 40. e4
{[%clk 0:00:05.4]} 40... Rb3+ {[%clk 0:00:33.4]} 41. f3 {[%clk 0:00:05.5]} 41...
Rb1 {[%clk 0:00:33.7]} 42. Rd6 {[%clk 0:00:05.1]} 42... Rb4 {[%clk 0:00:33.2]}
43. Rdc6 {[%clk 0:00:05.3]} 43... Rd7 {[%clk 0:00:31.8]} 44. Rxb4 {[%clk
0:00:05.2]} 44... axb4 {[%clk 0:00:31.7]} 45. Rc4 {[%clk 0:00:05.6]} 45... b3
{[%clk 0:00:31.4]} 46. Rb4 {[%clk 0:00:06]} 46... Ra7 {[%clk 0:00:31.6]} 47. Kf4
{[%clk 0:00:05.9]} 47... b2 {[%clk 0:00:30.8]} 48. Rxb2 {[%clk 0:00:06]} 48...
Rxa4 {[%clk 0:00:31]} 49. Ke5 {[%clk 0:00:05]} 49... Ra3 {[%clk 0:00:31.4]} 50.
f4 {[%clk 0:00:04.6]} 50... Rh3 {[%clk 0:00:28.9]} 51. f5+ {[%clk 0:00:05]}
51... exf5 {[%clk 0:00:29.5]} 52. exf5+ {[%clk 0:00:05.9]} 52... Kh7 {[%clk
0:00:30.4]} 53. Rb4 {[%clk 0:00:06.5]} 53... Rg3 {[%clk 0:00:26.5]} 54. Kd5
{[%clk 0:00:05.5]} 54... Rg4 {[%clk 0:00:26.7]} 55. Rc4 {[%clk 0:00:04.1]} 55...
f6 {[%clk 0:00:21.6]} 56. gxf6 {[%clk 0:00:03.3]} 56... gxf6 {[%clk 0:00:21.7]}
57. Rc6 {[%clk 0:00:03.7]} 57... Kg7 {[%clk 0:00:18.4]} 58. Rxb6 {[%clk
0:00:03.6]} 58... Rxh4 {[%clk 0:00:18.8]} 59. Rc6 {[%clk 0:00:03.6]} 59... Rb4
{[%clk 0:00:17.4]} 60. Kc5 {[%clk 0:00:04]} 60... Rb1 {[%clk 0:00:16.4]} 61. Kb6
{[%clk 0:00:04.3]} 61... h4 {[%clk 0:00:16.3]} 62. Rc4 {[%clk 0:00:04.6]} 62...
Kh6 {[%clk 0:00:14.9]} 63. Rxh4+ {[%clk 0:00:04.6]} 63... Kg5 {[%clk 0:00:15.4]}
64. Rh2 {[%clk 0:00:04.4]} 64... Kxf5 {[%clk 0:00:15.7]} 65. Kc6 {[%clk
0:00:04.1]} 65... Ke4 {[%clk 0:00:14.7]} 66. b6 {[%clk 0:00:03.7]} 66... f5
{[%clk 0:00:15]} 67. b7 {[%clk 0:00:03.5]} 67... f4 {[%clk 0:00:13.7]} 68. Rh5
{[%clk 0:00:03.5]} 68... Rxb7 {[%clk 0:00:12.8]} 69. Kxb7 {[%clk 0:00:03.3]}
69... f3 {[%clk 0:00:13.7]} 70. Rh3 {[%clk 0:00:02.9]} 70... f2 {[%clk
0:00:12.9]} 71. Rh1 {[%clk 0:00:03.4]} 71... Kf3 {[%clk 0:00:13.2]} 72. Rf1
{[%clk 0:00:04.1]} 72... Kg2 {[%clk 0:00:13.5]} 73. Rxf2+ {[%clk 0:00:05]} 73...
Kxf2 {[%clk 0:00:14.4]} 1/2-1/2

[Event "*** Titled Tuesday Blitz"]
[Site "Chess.com"]
[Date "2021.02.09"]
[Round "3"]
[White "FMJoseHerrera"]
[Black "MrTattaglia"]
[Result "0-1"]
[WhiteElo "2590"]
[BlackElo "2795"]
[TimeControl "180+1"]
[EndTime "10:30:39 PST"]
[Termination "MrTattaglia won on time"]

1. Nf3 {[%clk 0:02:46.5]} 1... c5 {[%clk 0:02:59.5]} 2. g3 {[%clk 0:02:44.7]}
2... b6 {[%clk 0:02:59.7]} 3. Bg2 {[%clk 0:02:43.7]} 3... Bb7 {[%clk 0:03:00.1]}
4. d3 {[%clk 0:02:44.1]} 4... g6 {[%clk 0:03:00.4]} 5. Nc3 {[%clk 0:02:43.4]}
5... Bg7 {[%clk 0:03:00.8]} 6. h4 {[%clk 0:02:43.4]} 6... h5 {[%clk 0:02:59.9]}
7. e4 {[%clk 0:02:42.9]} 7... Nc6 {[%clk 0:03:00]} 8. O-O {[%clk 0:02:42.5]}
8... d6 {[%clk 0:03:00.2]} 9. Be3 {[%clk 0:02:39.7]} 9... Nf6 {[%clk 0:02:59.8]}
10. d4 {[%clk 0:02:37.6]} 10... Ng4 {[%clk 0:02:59.3]} 11. Qd2 {[%clk
0:02:30.6]} 11... Nxe3 {[%clk 0:02:57.2]} 12. fxe3 {[%clk 0:02:31.5]} 12... O-O
{[%clk 0:02:51.1]} 13. Rad1 {[%clk 0:02:29.6]} 13... Rb8 {[%clk 0:02:50.5]} 14.
Nd5 {[%clk 0:02:27.9]} 14... e6 {[%clk 0:02:44.9]} 15. Nf4 {[%clk 0:02:25.8]}
15... Qe7 {[%clk 0:02:41.6]} 16. c3 {[%clk 0:02:25]} 16... Rbd8 {[%clk 0:02:40]}
17. Ng5 {[%clk 0:02:24.2]} 17... Na5 {[%clk 0:02:36.7]} 18. Qe2 {[%clk 0:02:15]}
18... Bh6 {[%clk 0:02:28.3]} 19. d5 {[%clk 0:01:52.1]} 19... exd5 {[%clk
0:02:24.6]} 20. exd5 {[%clk 0:01:53]} 20... Bxg5 {[%clk 0:02:18.4]} 21. hxg5
{[%clk 0:01:51.1]} 21... Qxg5 {[%clk 0:02:19.3]} 22. b4 {[%clk 0:01:49.3]} 22...
cxb4 {[%clk 0:02:15.3]} 23. cxb4 {[%clk 0:01:50.2]} 23... Qxg3 {[%clk
0:01:57.4]} 24. bxa5 {[%clk 0:01:50]} 24... bxa5 {[%clk 0:01:58.3]} 25. Rf3
{[%clk 0:01:36.8]} 25... Qg5 {[%clk 0:01:57.6]} 26. Qb5 {[%clk 0:01:36.2]} 26...
Bc8 {[%clk 0:01:56.6]} 27. Rdf1 {[%clk 0:01:30.4]} 27... Bg4 {[%clk 0:01:56.1]}
28. R3f2 {[%clk 0:01:28.5]} 28... Qe5 {[%clk 0:01:55.6]} 29. e4 {[%clk
0:01:16.6]} 29... Qc3 {[%clk 0:01:49.7]} 30. Qb7 {[%clk 0:01:10.3]} 30... Rd7
{[%clk 0:01:49.6]} 31. Qb5 {[%clk 0:01:05.7]} 31... Rfd8 {[%clk 0:01:45.2]} 32.
Bf3 {[%clk 0:00:46.4]} 32... Re7 {[%clk 0:01:40.4]} 33. Bg2 {[%clk 0:00:28.3]}
33... Qg3 {[%clk 0:01:39.4]} 34. Qxa5 {[%clk 0:00:26.8]} 34... Rde8 {[%clk
0:01:36.3]} 35. Ne2 {[%clk 0:00:18.9]} 35... Qe3 {[%clk 0:01:31.9]} 36. Qc3
{[%clk 0:00:16.1]} 36... Qb6 {[%clk 0:01:31.4]} 37. Nd4 {[%clk 0:00:15.5]} 37...
Rc8 {[%clk 0:01:30.9]} 38. Nc6 {[%clk 0:00:15.7]} 38... Rec7 {[%clk 0:01:26.8]}
39. Qf6 {[%clk 0:00:15.8]} 39... Re8 {[%clk 0:01:18.7]} 40. Qxd6 {[%clk
0:00:15.6]} 40... Rd7 {[%clk 0:01:19]} 41. Qf6 {[%clk 0:00:15.5]} 41... Qe3
{[%clk 0:01:01.1]} 42. Kh1 {[%clk 0:00:14.9]} 42... Rxe4 {[%clk 0:00:55.9]} 43.
Bxe4 {[%clk 0:00:12.8]} 43... Qxe4+ {[%clk 0:00:56.8]} 44. Kg1 {[%clk
0:00:13.4]} 44... Qe3 {[%clk 0:00:54.4]} 45. Qf4 {[%clk 0:00:12.9]} 45... Qc5
{[%clk 0:00:50.5]} 46. Ne5 {[%clk 0:00:13.2]} 46... Rb7 {[%clk 0:00:41]} 47.
Nxg4 {[%clk 0:00:13.4]} 47... hxg4 {[%clk 0:00:40.4]} 48. d6 {[%clk 0:00:13.7]}
48... f5 {[%clk 0:00:35.2]} 49. Rd1 {[%clk 0:00:13]} 49... Rd7 {[%clk
0:00:24.2]} 50. Qd4 {[%clk 0:00:13]} 50... Qa3 {[%clk 0:00:17.2]} 51. Qd5+
{[%clk 0:00:12.8]} 51... Kf8 {[%clk 0:00:17.5]} 52. Qe5 {[%clk 0:00:12.2]} 52...
g3 {[%clk 0:00:04.5]} 53. Re2 {[%clk 0:00:10.4]} 53... Kg8 {[%clk 0:00:01.2]}
54. Qe8+ {[%clk 0:00:10.3]} 54... Kh7 {[%clk 0:00:02]} 55. Qxd7+ {[%clk
0:00:10.1]} 55... Kh6 {[%clk 0:00:02.9]} 56. Qc7 {[%clk 0:00:09.2]} 56... Qf3
{[%clk 0:00:02.1]} 57. Qc1+ {[%clk 0:00:09.6]} 57... f4 {[%clk 0:00:01.9]} 58.
Qe3 {[%clk 0:00:10.5]} 58... fxe3 {[%clk 0:00:01.9]} 59. Rde1 {[%clk 0:00:10.5]}
59... Qd5 {[%clk 0:00:02]} 60. Rxe3 {[%clk 0:00:10.1]} 60... Qxd6 {[%clk
0:00:02.5]} 61. Kg2 {[%clk 0:00:10]} 61... g5 {[%clk 0:00:02.5]} 62. R1e2 {[%clk
0:00:09.1]} 62... Kh5 {[%clk 0:00:01.3]} 63. Rxg3 {[%clk 0:00:08.1]} 63... Qd5+
{[%clk 0:00:01.9]} 64. Kh2 {[%clk 0:00:08.4]} 64... g4 {[%clk 0:00:02.3]} 65.
Reg2 {[%clk 0:00:07.9]} 65... Qe5 {[%clk 0:00:02.4]} 66. Kg1 {[%clk 0:00:08.2]}
66... Qe1+ {[%clk 0:00:02.4]} 67. Kh2 {[%clk 0:00:08.8]} 67... Qe5 {[%clk
0:00:03.3]} 68. Kh1 {[%clk 0:00:09.3]} 68... Qe4 {[%clk 0:00:02.7]} 69. Kg1
{[%clk 0:00:09.1]} 69... Kh4 {[%clk 0:00:02.6]} 70. Kh2 {[%clk 0:00:07.3]} 70...
Qf4 {[%clk 0:00:02.5]} 71. a3 {[%clk 0:00:07.2]} 71... a6 {[%clk 0:00:02.4]} 72.
Kh1 {[%clk 0:00:07.7]} 72... Qxg3 {[%clk 0:00:01.9]} 0-1

[Event "*** Titled Tuesday Blitz"]
[Site "Chess.com"]
[Date "2021.02.09"]
[Round "3"]
[White "olksuna"]
[Black "Alexander_Zubov"]
[Result "0-1"]
[WhiteElo "2698"]
[BlackElo "2986"]
[TimeControl "180+1"]
[EndTime "10:30:45 PST"]
[Termination "Alexander_Zubov won by resignation"]

1. e4 {[%clk 0:03:00.9]} 1... c5 {[%clk 0:02:49]} 2. Nf3 {[%clk 0:03:00.5]} 2...
e6 {[%clk 0:02:49.4]} 3. d4 {[%clk 0:03:00.5]} 3... cxd4 {[%clk 0:02:49.7]} 4.
Nxd4 {[%clk 0:03:01.4]} 4... a6 {[%clk 0:02:50.2]} 5. c4 {[%clk 0:03:01.2]} 5...
Nf6 {[%clk 0:02:49.7]} 6. Nc3 {[%clk 0:03:01.3]} 6... Bb4 {[%clk 0:02:50.2]} 7.
Qd3 {[%clk 0:02:52.2]} 7... d6 {[%clk 0:02:50.2]} 8. Be2 {[%clk 0:02:35]} 8...
Nbd7 {[%clk 0:02:49.4]} 9. f3 {[%clk 0:02:24.6]} 9... O-O {[%clk 0:02:43.6]} 10.
a3 {[%clk 0:02:16.4]} 10... Ne5 {[%clk 0:02:39]} 11. Qd2 {[%clk 0:02:07.8]}
11... Ba5 {[%clk 0:02:29.7]} 12. b4 {[%clk 0:01:54.5]} 12... Bb6 {[%clk
0:02:28.9]} 13. f4 {[%clk 0:01:54.7]} 13... Ng6 {[%clk 0:02:20.9]} 14. Nb3
{[%clk 0:01:39.6]} 14... Nh4 {[%clk 0:01:49.1]} 15. Bd3 {[%clk 0:01:34.8]} 15...
Ng4 {[%clk 0:01:11]} 16. c5 {[%clk 0:01:30.1]} 16... dxc5 {[%clk 0:01:10.3]} 17.
bxc5 {[%clk 0:01:23.5]} 17... Nxg2+ {[%clk 0:00:59.9]} 18. Qxg2 {[%clk
0:01:18.5]} 18... Qxd3 {[%clk 0:00:59.1]} 19. Qg3 {[%clk 0:00:50.1]} 19... Qxg3+
{[%clk 0:00:48]} 20. hxg3 {[%clk 0:00:51]} 20... Bc7 {[%clk 0:00:47.3]} 21. Bb2
{[%clk 0:00:41]} 21... Rd8 {[%clk 0:00:45.1]} 22. Ke2 {[%clk 0:00:40.5]} 22...
Bd7 {[%clk 0:00:37.4]} 23. Rh4 {[%clk 0:00:31.9]} 23... f5 {[%clk 0:00:36.6]}
24. Nd4 {[%clk 0:00:20.5]} 24... Re8 {[%clk 0:00:25.2]} 25. Kf3 {[%clk
0:00:18.3]} 25... Rad8 {[%clk 0:00:24.3]} 26. Rd1 {[%clk 0:00:13.2]} 26... Bc8
{[%clk 0:00:20.8]} 27. e5 {[%clk 0:00:10.6]} 27... Bd7 {[%clk 0:00:18.9]} 28.
Rhh1 {[%clk 0:00:10.6]} 28... Ba5 {[%clk 0:00:18.5]} 29. Rhe1 {[%clk 0:00:09]}
29... Rc8 {[%clk 0:00:18.2]} 30. Nb3 {[%clk 0:00:08.3]} 30... Bc6+ {[%clk
0:00:16.5]} 31. Ke2 {[%clk 0:00:07.4]} 31... Bxc3 {[%clk 0:00:17.1]} 32. Bxc3
{[%clk 0:00:08]} 32... Bd5 {[%clk 0:00:15]} 33. Rb1 {[%clk 0:00:06.8]} 33...
Bxb3 {[%clk 0:00:14.9]} 34. Rxb3 {[%clk 0:00:07.7]} 34... Rxc5 {[%clk
0:00:15.2]} 35. Bd4 {[%clk 0:00:08.4]} 35... Rd5 {[%clk 0:00:14.4]} 36. Be3
{[%clk 0:00:07]} 36... Rc8 {[%clk 0:00:13.6]} 37. Rc1 {[%clk 0:00:05.8]} 37...
Rxc1 {[%clk 0:00:13.3]} 38. Bxc1 {[%clk 0:00:06.7]} 38... b5 {[%clk 0:00:12.5]}
39. Rc3 {[%clk 0:00:07]} 39... h6 {[%clk 0:00:12.4]} 40. Rc6 {[%clk 0:00:06.6]}
40... Kf7 {[%clk 0:00:12.8]} 41. Rxa6 {[%clk 0:00:06.7]} 41... Rc5 {[%clk
0:00:13.4]} 42. Bd2 {[%clk 0:00:06.7]} 42... g5 {[%clk 0:00:12.9]} 43. fxg5
{[%clk 0:00:06]} 43... hxg5 {[%clk 0:00:13.8]} 44. Bxg5 {[%clk 0:00:06]} 44...
Rxe5+ {[%clk 0:00:13]} 45. Kd2 {[%clk 0:00:06.7]} 45... Rd5+ {[%clk 0:00:13.2]}
46. Kc3 {[%clk 0:00:06.3]} 46... Nf2 {[%clk 0:00:13.7]} 47. Kb4 {[%clk
0:00:06.1]} 47... Ne4 {[%clk 0:00:13.7]} 48. Bh6 {[%clk 0:00:06.4]} 48... Nxg3
{[%clk 0:00:13.2]} 49. Rb6 {[%clk 0:00:04.8]} 49... Ne2 {[%clk 0:00:08.8]} 50.
Rxb5 {[%clk 0:00:04.3]} 50... Rd4+ {[%clk 0:00:09.2]} 51. Kc5 {[%clk 0:00:04.1]}
51... Ra4 {[%clk 0:00:09.1]} 52. Rb3 {[%clk 0:00:03]} 52... Nd4 {[%clk
0:00:08.3]} 53. Rd3 {[%clk 0:00:02.5]} 53... e5 {[%clk 0:00:08.1]} 54. Bd2
{[%clk 0:00:01.7]} 54... Ke6 {[%clk 0:00:06.9]} 55. Bb4 {[%clk 0:00:02.6]} 55...
f4 {[%clk 0:00:07]} 56. Rd1 {[%clk 0:00:03.4]} 56... Kf5 {[%clk 0:00:06.7]} 57.
Kc4 {[%clk 0:00:03.7]} 57... Ra8 {[%clk 0:00:06.4]} 58. Kd3 {[%clk 0:00:03.8]}
58... Ne6 {[%clk 0:00:05.2]} 59. Rh1 {[%clk 0:00:03.5]} 59... Rg8 {[%clk
0:00:05.1]} 60. a4 {[%clk 0:00:03.1]} 60... e4+ {[%clk 0:00:05.2]} 61. Kc4
{[%clk 0:00:03.3]} 61... Rc8+ {[%clk 0:00:04.5]} 62. Kd5 {[%clk 0:00:03]} 62...
Rd8+ {[%clk 0:00:05.1]} 63. Kc6 {[%clk 0:00:02.7]} 63... Nd4+ {[%clk 0:00:04.6]}
64. Kc7 {[%clk 0:00:02.6]} 64... Ne6+ {[%clk 0:00:05.2]} 65. Kc6 {[%clk
0:00:02.4]} 65... Rd4 {[%clk 0:00:05.8]} 66. Bd6 {[%clk 0:00:03.1]} 66... Rxa4
{[%clk 0:00:05.6]} 67. Rh5+ {[%clk 0:00:03.1]} 67... Kg4 {[%clk 0:00:06]} 68.
Re5 {[%clk 0:00:04]} 68... Ng5 {[%clk 0:00:06.4]} 69. Re8 {[%clk 0:00:03.4]}
69... Ra6+ {[%clk 0:00:06.9]} 70. Kd5 {[%clk 0:00:03.4]} 70... e3 {[%clk
0:00:07.1]} 71. Rg8 {[%clk 0:00:04.3]} 71... Ra5+ {[%clk 0:00:07.6]} 72. Bc5
{[%clk 0:00:04.3]} 72... e2 {[%clk 0:00:07.7]} 73. Re8 {[%clk 0:00:04.5]} 73...
f3 {[%clk 0:00:08]} 74. Kd4 {[%clk 0:00:05]} 74... Ra1 {[%clk 0:00:06.6]} 75.
Bb4 {[%clk 0:00:04.5]} 75... f2 {[%clk 0:00:06.7]} 76. Rxe2 {[%clk 0:00:03.2]}
76... f1=Q {[%clk 0:00:06.8]} 77. Rg2+ {[%clk 0:00:04.1]} 0-1

[Event "*** Titled Tuesday Blitz"]
[Site "Chess.com"]
[Date "2021.02.09"]
[Round "3"]
[White "AwareIdea"]
[Black "tdf98pantani"]
[Result "1-0"]
[WhiteElo "2469"]
[BlackElo "2737"]
[TimeControl "180+1"]
[EndTime "10:31:11 PST"]
[Termination "AwareIdea won on time"]

1. d4 {[%clk 0:03:00.9]} 1... d5 {[%clk 0:02:57.3]} 2. Bf4 {[%clk 0:03:00.9]}
2... c5 {[%clk 0:02:54.1]} 3. e3 {[%clk 0:03:00.9]} 3... Nc6 {[%clk 0:02:49.5]}
4. Nc3 {[%clk 0:03:01]} 4... cxd4 {[%clk 0:02:36.2]} 5. exd4 {[%clk 0:03:01.9]}
5... a6 {[%clk 0:02:28.2]} 6. Qd2 {[%clk 0:02:54.5]} 6... Nf6 {[%clk 0:02:22.4]}
7. Nf3 {[%clk 0:02:51.3]} 7... Bf5 {[%clk 0:02:18.8]} 8. Bd3 {[%clk 0:02:48.6]}
8... Bxd3 {[%clk 0:02:11.2]} 9. Qxd3 {[%clk 0:02:49.5]} 9... e6 {[%clk
0:02:10.4]} 10. O-O {[%clk 0:02:48.4]} 10... Be7 {[%clk 0:01:54.3]} 11. Ne5
{[%clk 0:02:43.2]} 11... O-O {[%clk 0:01:52.1]} 12. Nxc6 {[%clk 0:02:42.8]}
12... bxc6 {[%clk 0:01:52]} 13. Ne2 {[%clk 0:02:40.1]} 13... c5 {[%clk
0:01:51.8]} 14. dxc5 {[%clk 0:02:34.7]} 14... Bxc5 {[%clk 0:01:51.5]} 15. Bg5
{[%clk 0:02:34.6]} 15... Be7 {[%clk 0:01:51.3]} 16. c4 {[%clk 0:02:31.6]} 16...
h6 {[%clk 0:01:46.4]} 17. Bxf6 {[%clk 0:02:28.8]} 17... Bxf6 {[%clk 0:01:46.1]}
18. cxd5 {[%clk 0:02:29.2]} 18... Qxd5 {[%clk 0:01:46.2]} 19. Qxd5 {[%clk
0:02:27.4]} 19... exd5 {[%clk 0:01:46.2]} 20. Rad1 {[%clk 0:02:26.3]} 20... Bxb2
{[%clk 0:01:44.7]} 21. Rxd5 {[%clk 0:02:26.1]} 21... Rfd8 {[%clk 0:01:44.5]} 22.
Rfd1 {[%clk 0:02:22.9]} 22... Rxd5 {[%clk 0:01:44.2]} 23. Rxd5 {[%clk
0:02:23.8]} 23... Rc8 {[%clk 0:01:44.1]} 24. g3 {[%clk 0:02:09.4]} 24... Rc2
{[%clk 0:01:42.5]} 25. Kf1 {[%clk 0:02:07.6]} 25... Bf6 {[%clk 0:01:31.8]} 26.
Ra5 {[%clk 0:02:07]} 26... Rc6 {[%clk 0:01:31.3]} 27. f4 {[%clk 0:02:03.4]}
27... Kf8 {[%clk 0:01:30.2]} 28. Kf2 {[%clk 0:02:00.8]} 28... Bd8 {[%clk
0:01:30]} 29. Ra4 {[%clk 0:01:59.5]} 29... a5 {[%clk 0:01:29.4]} 30. Ke3 {[%clk
0:01:59.2]} 30... Rc2 {[%clk 0:01:28.8]} 31. Kd3 {[%clk 0:01:58.6]} 31... Rb2
{[%clk 0:01:28.5]} 32. h4 {[%clk 0:01:56.1]} 32... h5 {[%clk 0:01:26.3]} 33. Nc3
{[%clk 0:01:52]} 33... g6 {[%clk 0:01:23.5]} 34. Re4 {[%clk 0:01:50.9]} 34...
Rg2 {[%clk 0:01:21.5]} 35. Ne2 {[%clk 0:01:49.5]} 35... Rf2 {[%clk 0:01:19.7]}
36. Rd4 {[%clk 0:01:41.9]} 36... Ke7 {[%clk 0:01:18.4]} 37. Rd5 {[%clk 0:01:40]}
37... Rf3+ {[%clk 0:01:17.6]} 38. Kc2 {[%clk 0:01:37.1]} 38... Re3 {[%clk
0:01:15.4]} 39. Kd2 {[%clk 0:01:27.9]} 39... Ra3 {[%clk 0:01:14.9]} 40. Nc3
{[%clk 0:01:25]} 40... Ke8 {[%clk 0:01:08]} 41. Re5+ {[%clk 0:01:10]} 41... Kd7
{[%clk 0:01:07.8]} 42. Rd5+ {[%clk 0:01:09.4]} 42... Kc8 {[%clk 0:01:07.2]} 43.
Rxd8+ {[%clk 0:01:10.3]} 43... Kxd8 {[%clk 0:01:06.6]} 44. Kc2 {[%clk
0:01:11.2]} 44... Kd7 {[%clk 0:01:05.8]} 45. Kb2 {[%clk 0:01:11.6]} 45... Rxc3
{[%clk 0:01:05]} 46. Kxc3 {[%clk 0:01:12.5]} 46... Ke6 {[%clk 0:01:04.8]} 47.
Kc4 {[%clk 0:01:09.2]} 47... Kf5 {[%clk 0:01:04.9]} 48. Kb5 {[%clk 0:01:09.6]}
48... Kg4 {[%clk 0:01:04.8]} 49. Kxa5 {[%clk 0:01:09.8]} 49... Kxg3 {[%clk
0:01:05]} 50. Kb4 {[%clk 0:01:10.1]} 50... Kxf4 {[%clk 0:01:02.6]} 51. a4 {[%clk
0:01:11]} 51... g5 {[%clk 0:01:02.7]} 52. a5 {[%clk 0:01:11.9]} 52... g4 {[%clk
0:01:02.2]} 53. a6 {[%clk 0:01:12.4]} 53... g3 {[%clk 0:01:02.3]} 54. a7 {[%clk
0:01:12.8]} 54... g2 {[%clk 0:01:02.4]} 55. a8=Q {[%clk 0:01:10.5]} 55... g1=Q
{[%clk 0:01:01.4]} 56. Qb8+ {[%clk 0:01:03.1]} 56... Kf3 {[%clk 0:00:58.2]} 57.
Qb7+ {[%clk 0:01:01]} 57... Kg3 {[%clk 0:00:57.4]} 58. Qxf7 {[%clk 0:00:55.5]}
58... Qd4+ {[%clk 0:00:56]} 59. Kb3 {[%clk 0:00:53.3]} 59... Qxh4 {[%clk
0:00:55.9]} 60. Kc2 {[%clk 0:00:50]} 60... Qg4 {[%clk 0:00:50.7]} 61. Qc7+
{[%clk 0:00:41.6]} 61... Qf4 {[%clk 0:00:48.8]} 62. Qg7+ {[%clk 0:00:40]} 62...
Kf2 {[%clk 0:00:48.4]} 63. Qa7+ {[%clk 0:00:30.8]} 63... Kg2 {[%clk 0:00:46.6]}
64. Qg7+ {[%clk 0:00:28.7]} 64... Kh2 {[%clk 0:00:45.6]} 65. Qh8 {[%clk
0:00:19.7]} 65... h4 {[%clk 0:00:45.1]} 66. Kd3 {[%clk 0:00:19.8]} 66... Qf3+
{[%clk 0:00:44]} 67. Kd2 {[%clk 0:00:19.5]} 67... Qf2+ {[%clk 0:00:42]} 68. Kd3
{[%clk 0:00:19]} 68... h3 {[%clk 0:00:42.2]} 69. Ke4 {[%clk 0:00:17]} 69... Qg2+
{[%clk 0:00:23.2]} 70. Ke3 {[%clk 0:00:15.5]} 70... Kh1 {[%clk 0:00:21.1]} 71.
Qh7 {[%clk 0:00:12.4]} 71... h2 {[%clk 0:00:18.1]} 72. Qf5 {[%clk 0:00:04.1]}
72... Qg3+ {[%clk 0:00:13.7]} 73. Ke2 {[%clk 0:00:03.6]} 73... Qg2+ {[%clk
0:00:13]} 74. Qf2 {[%clk 0:00:03.8]} 74... Qe4+ {[%clk 0:00:10.8]} 75. Kf1
{[%clk 0:00:03.4]} 75... Qd3+ {[%clk 0:00:08.5]} 76. Ke1 {[%clk 0:00:03.8]}
76... Qb1+ {[%clk 0:00:03.2]} 77. Ke2 {[%clk 0:00:04.2]} 77... Qb5+ {[%clk
0:00:02.8]} 78. Ke1 {[%clk 0:00:04.3]} 1-0